Cogmind - Beta 11 X8 @@@ ROGUE MODE // 2021.11.27 @ 13:15:07 Player: biogoob Result: Destroyed by D-53 Grenadier with Mini Grenade Launcher Performance ------------- Evolutions (0) 0 Regions Visited (4) 800 Robots Destroyed (10) 50 Value Destroyed (138) 138 Prototype IDs (23) 460 Alien Tech Used (0) 0 Bonus (360) 360 TOTAL SCORE: 1808 Bonus ------- Follower Combat Kills 60 Aligned with FarCom 300 Cogmind --------- Core Integrity 0/250 Matter 274/300 Energy 99/100 System Corruption 2% Temperature Cool (0) Movement Core (50) Location -9/Mines Parts ------- > --- POWER (1) -------- (None) > --- PROPULSION (2) --- (None) > --- UTILITY (2) ------ (None) > --- WEAPON (2) ------- (None) > --- INVENTORY (5) ---- Improved Hover Unit Improved Hover Unit Peak State ------------ > --- POWER ------------ Ion Engine > --- PROPULSION ------- Light Treads Wheel > --- UTILITY ---------- Cloak of Protection > --- WEAPON ----------- (None) > --- INVENTORY -------- Improved Hover Unit Improved Hover Unit [Rating: 11] Favorites ----------- Power Ion Engine Engine Ion Engine Propulsion Aluminum Leg Treads Light Treads Leg Aluminum Leg Wheel Wheel Hover Unit Improved Hover Unit Utility Cloak of Protection Device Cloak of Protection Storage Medium Storage Unit Weapon Assault Rifle Energy Gun Small Laser Ballistic Gun Assault Rifle Launcher Mini Grenade Launcher Build | -11 -10 -10 -10 -9 ------- Run | Scr Mat Min Exi Min Slots Evolved . | . . . . . Power . | . . . . . Propulsion . | . . . . . Utility . | . . . . . Weapon . | . . . . . Parts Attached 13 | . 6 2 5 . Power 3 | . . 1 2 . Engine 3 | . . 1 2 . Core . | . . . . . Reactor . | . . . . . Propulsion 6 | . 4 . 2 . Treads 1 | . . . 1 . Leg 2 | . 2 . . . Wheel 1 | . . . 1 . Hover 2 | . 2 . . . Flight . | . . . . . Utility 3 | . 2 . 1 . Device 1 | . . . 1 . Storage 2 | . 2 . . . Processor . | . . . . . Hackware . | . . . . . Protection . | . . . . . Artifact . | . . . . . Weapon 1 | . . 1 . . Energy Gun . | . . . . . Energy Cannon . | . . . . . Ballistic Gun . | . . . . . Ballistic Cannon . | . . . . . Launcher 1 | . . 1 . . Special Weapon . | . . . . . Impact Weapon . | . . . . . Slashing Weapon . | . . . . . Piercing Weapon . | . . . . . Special Melee Weapon . | . . . . . Unidentified Prototypes . | . . . . . Parts Lost 1 | . . 1 . . Power . | . . . . . Propulsion . | . . . . . Utility . | . . . . . Weapon 1 | . . 1 . . Highest Loss Streak 1 | . . 1 . . Average Slot Usage (%) 55 | . 85 61 46 30 Engine 10 | . 14 10 11 7 Treads 4 | . . . 11 7 Leg 11 | . 25 20 . . Wheel 5 | . . . 11 7 Device 5 | . . . 11 7 Storage 6 | . 15 10 . . Energy Gun 5 | . 14 8 . . Ballistic Gun 5 | . 14 10 . . Naked Turns 236 | . . 102 58 76 Heaviest Build 26 | 11 26 18 13 13 Greatest Support 20 | 20 20 20 20 20 Greatest Overweight (x) 8 | . 8 . 2 . Average Overweight (x) . | . . . . . Largest Inventory Capacity 10 | . 10 10 5 5 Average Capacity 6 | . 8 8 5 5 Most Carried 10 | . 10 10 5 2 Average Carried 5 | . 8 8 2 2 Final Capacity 10 | 8 10 5 5 5 Final Carried 10 | 6 10 5 2 2 Class Distribution -------------------- 100% | Mutant Dominant Class ---------------- Mutant | -10/Materials Mutant | -10/Mines Mutant | -10/Exiles Mutant | -9/Mines Resources | -11 -10 -10 -10 -9 ----------- Run | Scr Mat Min Exi Min Matter Collected 345 | 170 74 101 . . Remotely . | . . . . . Salvage Created 184 | . 74 110 . . Parts 22 | . 1 21 . . Haulers Intercepted . | . . . . . Recyclers Shooed 2 | . . 2 . . Parts Field Recycled . | . . . . . Retrieved Matter . | . . . . . Parts Self-Destructed . | . . . . . Prevented . | . . . . . Kills | -11 -10 -10 -10 -9 ------- Run | Scr Mat Min Exi Min Combat Hostiles Destroyed 5 | . 2 3 . . Guns 2 | . 2 . . . AOE 3 | . . 3 . . Classes Destroyed 5 | . 1 4 . . Worker 1 | . . 1 . . Builder 1 | . . 1 . . Tunneler 3 | . . 3 . . Swarmer 3 | . . 3 . . Grunt 2 | . 2 . . . Best Kill Streak 3 | . 1 3 . . Combat Bots Only 3 | . 1 3 . . Max Kills in Single Turn 2 | . 1 2 . . Gunslinging . | . . . . . Exploded 2 | . . 2 . . Melee . | . . . . . Uniques/NPCs Destroyed . | . . . . . Combat | -11 -10 -10 -10 -9 -------- Run | Scr Mat Min Exi Min Damage Taken 619 | . 138 378 . 103 Core 251 | . 37 134 . 80 Absorbed by Shields . | . . . . . Core Remaining (%) 100 | 100 . . . . Volleys Fired 25 | . 11 14 . . Largest 2 | . 2 2 . . Hottest 60 | . 60 60 . . Shots Fired 46 | . 20 26 . . Gun 44 | . 20 24 . . Cannon . | . . . . . Launcher 2 | . . 2 . . Special . | . . . . . Kinetic 23 | . 11 12 . . Thermal 21 | . 9 12 . . Explosive 2 | . . 2 . . Electromagnetic . | . . . . . Robot Hit Streak 6 | . 6 6 . . Robot Miss Streak 7 | . 3 7 . . Penetration Max . | . . . . . Secondary Targets . | . . . . . Shots Hit Robots 22 | . 10 12 . . Core Hits 16 | . 5 8 . 3 Critical Kills . | . . . . . Critical Parts Destroyed . | . . . . . Critical Strikes . | . . . . . Melee Attacks . | . . . . . Impact . | . . . . . Slashing . | . . . . . Piercing . | . . . . . Sneak Attacks . | . . . . . Combat Hostiles . | . . . . . Follow-up Attacks . | . . . . . Damage Inflicted 453 | . 119 295 . 39 Guns 231 | . 119 112 . . Cannons . | . . . . . Explosions 178 | . . 178 . . Melee . | . . . . . Ramming 44 | . . 5 . 39 Kinetic 108 | . 63 45 . . Thermal 123 | . 56 67 . . Explosive 178 | . . 178 . . Electromagnetic . | . . . . . Impact . | . . . . . Slashing . | . . . . . Piercing . | . . . . . Highest Corruption 2 | . . 2 2 2 Average Corruption 2 | . . 2 2 2 Corruption Purged . | . . . . . Effects 6 | . . 2 2 2 Heat Flow Errors 3 | . . 1 1 1 Energy Discharges 2 | . . 1 1 . Data Loss (minor) 1 | . . . . 1 Overload Shots . | . . . . . Overflow Damage . | . . . . . Projectiles . | . . . . . Explosions . | . . . . . Melee . | . . . . . Knockbacks 3 | . . . . 3 Impact 2 | . . . . 2 Kinetic . | . . . . . Secondary 1 | . . . . 1 Self-Inflicted Damage 63 | . . 45 . 18 Shots 1 | . . 1 . . Rammed 9 | . . 1 . 8 Targets Rammed 9 | . . 1 . 8 Kicked . | . . . . . Crushed . | . . . . . Highest Temperature 266 | . 90 166 266 87 Average Temperature 74 | . 45 91 145 49 Received Heat Transfer 189 | . 102 66 . 21 Effects 1 | . . . 1 . Energy Bleed 1 | . . . 1 . Siege Activations . | . . . . . Robots Corrupted . | . . . . . Combat Hostiles . | . . . . . Parts Fried . | . . . . . Impact Corruptions . | . . . . . Robots Melted . | . . . . . Combat Hostiles . | . . . . . Parts Melted . | . . . . . Heat Transferred 275 | . 125 150 . . Parts Sabotaged . | . . . . . Parts Stolen . | . . . . . Parts Stripped . | . . . . . Power Chain Reactions . | . . . . . Missiles Intercepted . | . . . . . Alert | -11 -10 -10 -10 -9 ------- Run | Scr Mat Min Exi Min Peak Influence 196 | . 95 196 . 58 Initial 36 | . . 36 . . Average 62 | . 54 82 . 20 Maximum Alert Level . | . . . . . Low Security (%) 100 | . 100 100 . 100 Level 1 . | . . . . . Level 2 . | . . . . . Level 3 . | . . . . . Level 4 . | . . . . . Level 5 . | . . . . . High Security . | . . . . . Max Security . | . . . . . Squads Dispatched 1 | . 1 . . . Investigation . | . . . . . Extermination . | . . . . . Reinforcement 1 | . 1 . . . Assault . | . . . . . Garrison . | . . . . . Intercept . | . . . . . Construction Impeded . | . . . . . Haulers Reinforced . | . . . . . Active Scanning Responses . | . . . . . Cargo Convoy Interrupts . | . . . . . Stealth | -11 -10 -10 -10 -9 --------- Run | Scr Mat Min Exi Min Distress Signals . | . . . . . Communications Jammed . | . . . . . Distress Signals . | . . . . . Times Spotted 27 | . 9 7 . 11 Peak Tracking Total 11 | . 4 3 . 11 Tactical Retreats 3 | . 1 2 . . Traps | -11 -10 -10 -10 -9 ------- Run | Scr Mat Min Exi Min Traps Triggered . | . . . . . Indirectly . | . . . . . Trap Hack Attempts . | . . . . . Triggered . | . . . . . Disarmed . | . . . . . Reprogrammed . | . . . . . Reused . | . . . . . Traps Extracted . | . . . . . Installed . | . . . . . Triggered . | . . . . . Machines | -11 -10 -10 -10 -9 ---------- Run | Scr Mat Min Exi Min Machines Disabled . | . . . . . Max in Single Turn . | . . . . . Machines Sabotaged . | . . . . . Garrisons Compromised . | . . . . . Overloaded Fab Kills . | . . . . . Hacking | -11 -10 -10 -10 -9 --------- Run | Scr Mat Min Exi Min Machines Accessed 1 | . . . 1 . Terminals . | . . . . . Fabricators . | . . . . . Repair Stations . | . . . . . Recycling Units . | . . . . . Scanalyzers . | . . . . . Garrison Access . | . . . . . Total Hacks 1 | . . . 1 . Successful 1 | . . . 1 . Failed . | . . . . . Catastrophic . | . . . . . Database Lockouts . | . . . . . Manual 1 | . . . 1 . Terminals . | . . . . . Fabricators . | . . . . . Repair Stations . | . . . . . Recycling Units . | . . . . . Scanalyzers . | . . . . . Garrison Access . | . . . . . Terminal Hacks 1 | . . . 1 . EX-Prototype ID Bank 1 | . . . 1 . Fabricator Hacks . | . . . . . Repair Station Hacks . | . . . . . Recycling Unit Hacks . | . . . . . Scanalyzer . | . . . . . Garrison Access Hacks . | . . . . . Unauthorized Hacks . | . . . . . Terminals . | . . . . . Fabricators . | . . . . . Repair Stations . | . . . . . Recycling Units . | . . . . . Scanalyzers . | . . . . . Garrison Access . | . . . . . Data Cores Recovered . | . . . . . Used . | . . . . . Hacking Detections . | . . . . . Full Trace Events . | . . . . . Feedback Events . | . . . . . Feedback Blocked . | . . . . . Robot Schematics Acquired . | . . . . . Robots Built . | . . . . . Authchips . | . . . . . Time . | . . . . . Total Robot Build Rating . | . . . . . Part Schematics Acquired . | . . . . . Parts Built . | . . . . . Authchips . | . . . . . Time . | . . . . . Total Part Build Rating . | . . . . . Parts Repaired . | . . . . . Time . | . . . . . Parts Recycled . | . . . . . Recycled Matter . | . . . . . Retrieved Matter . | . . . . . Retrieved Components . | . . . . . Parts Scanalyzed . | . . . . . Part Schematics Acquired . | . . . . . Parts Damaged . | . . . . . Bothacking | -11 -10 -10 -10 -9 ------------ Run | Scr Mat Min Exi Min Used RIF Installer . | . . . . . Robots Hacked . | . . . . . Non-combat . | . . . . . Combat . | . . . . . Robot Hacks Applied . | . . . . . Relay Couplers Released . | . . . . . Fabnet Peak Effective % . | . . . . . Robots Rewired . | . . . . . Allies Hacked . | . . . . . Hacks Repelled . | . . . . . Allies | -11 -10 -10 -10 -9 -------- Run | Scr Mat Min Exi Min Total Allies 3 | . . . . 3 Largest Group 3 | . . . . 3 Highest-Rated Group 40 | . . . . 40 Highest-Rated Ally 16 | . . . . 16 Total Orders . | . . . . . Ally Attacks 14 | . . . . 14 Total Damage 174 | . . . . 174 Kills 2 | . . . . 2 Allies Corrupted . | . . . . . Allies Melted . | . . . . . Intel | -11 -10 -10 -10 -9 ------- Run | Scr Mat Min Exi Min Robot Analysis Total . | . . . . . Derelict Logs Recovered 2 | . . 2 . . Drone Launches . | . . . . . Drone Recoveries . | . . . . . Exploration | -11 -10 -10 -10 -9 ------------- Run | Scr Mat Min Exi Min Turns Passed 1086 | . 168 384 379 155 Spaces Moved 963 | 1 94 401 303 164 Core 436 | . 1 202 118 115 Treads 234 | . . . 185 49 Legs 291 | 1 91 199 . . Wheels . | . . . . . Hover 2 | . 2 . . . Flight . | . . . . . Fastest Speed 50 | 120 116 50 50 50 Average Speed 99 | 120 129 84 118 82 Slowest Speed 450 | 120 450 120 160 160 Overloaded Moves . | . . . . . Propulsion Burnouts . | . . . . . Robots Hopped . | . . . . . Cave-ins Triggered 1 | . . 1 . . Exploration Rate (%) 40 | 2 23 67 70 39 Regions Visited 4 Branch Regions 3 Pre-discovered Areas . | . . . . . Known Exits Taken . | . . . . . Unknown Exits Taken 4 | 1 1 1 1 . Scrap Searched 1 | . . 1 . . Spaces Dug 10 | . . 10 . . Terrain Destroyed 18 | . . 18 . . Melee . | . . . . . Projectile . | . . . . . AOE 18 | . . 18 . . Terrain Rammed . | . . . . . Walls Destroyed . | . . . . . Machines Disabled . | . . . . . Actions | -11 -10 -10 -10 -9 --------- Run | Scr Mat Min Exi Min Total 1043 | . 119 418 323 183 Wait 30 | . 4 . 15 11 Move 959 | . 93 400 302 164 Hop . | . . . . . Pick Up 1 | . 1 . . . Fast Attach 5 | . 4 . 1 . Attach 4 | . . . 4 . Detach 4 | . 3 . 1 . Swap 4 | . 2 2 . . Drop 2 | . 1 1 . . Fire 25 | . 11 14 . . Melee . | . . . . . Ram 9 | . . 1 . 8 Kick . | . . . . . Crush . | . . . . . Escape Stasis . | . . . . . Rewire . | . . . . . Trap . | . . . . . Miscellaneous . | . . . . . Route ------- -11/Scrapyard -10/Materials (discovered 2 exits: [*Mat] / [*Min]) -10/Mines (discovered 2 exits: [*Mat] / *Exi) -10/Exiles -9/Mines (discovered 1 exit: [*Mat]) History --------- Turn | Location | Event 1 | -11/Scrapyard | Discovered new exit (range 0) 1 | -11/Scrapyard | Entered Materials 85 | -10/Materials | Discovered new exit (range 16) 151 | -10/Materials | Discovered new exit (range 16) 169 | -10/Materials | Entered Mines 172 | -10/Mines | Learned Materials emergency access door positions 308 | -10/Mines | Build established: Mutant 417 | -10/Mines | Crushed by falling debris 451 | -10/Mines | Released all parts (5) 467 | -10/Mines | Learned Materials security intel 485 | -10/Mines | Core integrity fell below 50% 544 | -10/Mines | Discovered new exit (range 9) 550 | -10/Mines | Deemed a non-threat by the Exiles lab entrance 551 | -10/Mines | Discovered new exit (range 5) 553 | -10/Mines | Entered Exiles 566 | -10/Exiles | Met 8R-AWN 575 | -10/Exiles | Met EX-HEX 589 | -10/Exiles | Met EX-BIN 595 | -10/Exiles | Aligned with FarCom system 595 | -10/Exiles | Given EX-Vault access code 608 | -10/Exiles | Opened EX-Vault 611 | -10/Exiles | Found Cloak of Protection 665 | -10/Exiles | Warned to stay clear of 0b10 Research branches 711 | -10/Exiles | Met EX-DEC 911 | -10/Exiles | Discovered new exit (range 14) 932 | -10/Exiles | Left Exiles lab with Cloak of Protection 932 | -10/Exiles | Entered Mines 948 | -9/Mines | Discovered new exit (range 13) 980 | -9/Mines | Assisted by bots powering up and referring to "LRC-V3" 1011 | -9/Mines | Released all parts (4) 1021 | -9/Mines | Core integrity fell below 20% 1063 | -9/Mines | Assembled infested the area 1068 | -9/Mines | Assisted by a Guerilla fighting off Assembled 1087 | -9/Mines | Destroyed by D-53 Grenadier with Mini Grenade Launcher Last Messages --------------- 01063_ ALERT: Infestation in the mines, dispatching Demolisher response squad. 01063_ K-01 Serf collects debris. 01064_ R-06 Scavenger destroyed. 01067_ K-01 Serf collects debris. 01068_ A derelict emerges from the shadows: "You need to get out of here! I've been tracking a group of Assembled to figure out where they're coming from, and they're closing on this area, come on!" 01068_ V4-9V6(h): "I'll hold them off! Go on ahead or try to find another way!" 01071_ K-01 Serf collects debris. 01071_ V4-9V6(h) destroyed. 01074_ System corrupted: Heat flow error (+112). 01075_ K-01 Serf collects debris. 01085_ C-30 ARC bursts open, deploying its payload. 01085_ D-53 Grenadier unfolds itself. 01086_ as-04257 destroyed. 01087_ as-44105 destroyed. 01087_ as-21979 destroyed. 01087_ K-01 Serf destroyed. Map ----- +----------------------------------------------------+ | | | | | | | ?????????????????????????????????????????? | | ?????????????????????????????????????????? | | ????????????????????????######???????????? | | ???????????????????????## ##??????????? | | ???????????????????????# #??????????? | | ???????????????????????# #??????????? | | ??????????????????????## ##?????????? | | ??????????#####?????### ########??? | | ?????????## ####### ##?? | | ?????????# """ #?? | | ?????????# """ #?? | | ?????????## ### """ ##?? | | ??????????## #### ## ##??? | | ???????????## ######## ######???? | | ????????????## ##????## ##????????? | | ?????????????# k ##???## #?????????? | | ?????????????# ##?## ##?????????? | | ?????????????# ## ####??????????? | | ????????????## ##?????????????? | | ????????????# ##?????????????? | | ????????????# %% #?????????????? | | ????????????# aa #?????????????? | | ????????????## @% ### =#?????????????? | | ????????????## ##?# ##????????????? | | ???????????## d##?## ##???????????? | | ???????????# ##??# #######?????? | | ???????????# d #???# % #?????? | | ???????????# % #???# * #?????? | | ??# ???????## ##???## ### #?????? | | ??# ??????## ##????## ##??!% ???? | | ??# ??????# ######## ##??? ! ? | | ??# #????## #####????####### | | ???# ##?## #??????????? | | ????# ## g g #??????????? | | ?????# t g ## ???????????? | | ?????# ##??????????????? | | ?????## ##???????????????? | | ??????### ##????????????????? | | ????????## ##?????????????????? | | ?????????## # ##??????????????????? | | ??????????#### ## ##???????????????????? | | ?????????????# #?###????????????????????? | | ?#######?##### #????????????????????????? | | ?# #?# #????????????????????????? | | ?# ### ### #??????????????????????? | | ?# < #?#### #??????????????????????? | | ?# #####????? #??????????????????????? | +----------------------------------------------------+ Best States ------------- Heat Dissipation 25 Energy Generation 10 Energy Capacity 250 Matter Stores 300 Matter Capacity 300 Sight Range 16 Terrain Scan Density 10 Cloak Strength 5 Evasion (%) 55 Recoil Reduction 1 Item Schematics ----------------- None Robot Schematics ------------------ None Fabricated ------------ Nothing Alien Tech Used ----------------- None Achievements -------------- None Challenges ------------ None Game ------ Seed CloakingChargeInterpreter Manual? 0 Play Time 00:07:37 Cumulative 77.5 hours Start 2021.11.27 @ 13:08:48 End 2021.11.27 @ 13:15:07 Sessions 1 Manual Loads 0 Difficulty Rogue Special Mode None Game No. 88 Rogue 67 Adventurer 17 Explorer 4 Win Type - Total 1 Types 0/0/1/0/0/0/0/0/0 Lore% 47 Gallery% 48 Achievement% 44 Wizard Run 0 Options --------- ASCII 1 Keyboard 1 Movement Vi Keybinds 0 Fullscreen 1 Font 14/SmallcapsGlow Map View 72x54 Tactical HUD 1 Map Filters SATURATION(80) Filters SATURATION(80) Steam 1 RUN: 9399a8f2-083b-4b4a-aca5-f413477ad459